lending/lending_fUSD_20240710
["ID","MTS","AMOUNT","RATE_DAILY","PERIOD"]
[331603030,1720578702046,-1958.4,0.00013942,2]
[331603031,1720578702055,-885.52,0.00013942,2]
[331603032,1720578702064,-500.0,0.00013942,2]
[331603033,1720578702074,-520.5778938,0.00013942,2]
[331603034,1720578702085,-176.21363157,0.00013942,2]
[331603035,1720578702094,-227.87814094,0.00013942,2]
[331603036,1720578702103,-908.45,0.00013943,2]
[331603037,1720578702113,-661.13,0.00013943,2]
[331603038,1720578702123,-500.0,0.00013943,2]
[331603039,1720578702134,-500.0,0.00013943,2]
[331603040,1720578702144,-769.46,0.00013943,2]
[331603041,1720578702154,-3561.78,0.00013943,2]
[331603042,1720578702164,-1343.75,0.00013943,2]
[331603043,1720578702173,-500.0,0.00013943,2]
[331603044,1720578702183,-1383.61,0.00013943,2]
[331603045,1720578702192,-1390.66,0.00013943,2]
[331603046,1720578702202,-2786.81,0.00013943,2]
[331603047,1720578702212,-951.91,0.00013943,2]
[331603048,1720578702221,-500.0,0.00013943,2]
[331603049,1720578702230,-500.0,0.00013943,2]
[331603050,1720578702240,-1100.41,0.00013943,2]
[331603051,1720578702250,-1446.15,0.00013943,2]
[331603052,1720578702259,-1354.86,0.00013943,2]
[331603053,1720578702268,-1173.43,0.00013943,2]
[331603054,1720578702278,-500.0,0.00013943,2]
[331603055,1720578702287,-657.2,0.00013943,2]
[331603056,1720578702296,-1316.84,0.00013943,2]
[331603057,1720578702305,-817.04,0.00013943,2]
[331603058,1720578702314,-2361.64,0.00013943,2]
[331603059,1720578702323,-500.0,0.00013943,2]
[331603060,1720578702334,-714.27,0.00013943,2]
[331603061,1720578702343,-1654.5,0.00013943,2]
[331603062,1720578702353,-500.0,0.00013943,2]
[331603063,1720578702363,-500.0,0.00013943,2]
[331603064,1720578702372,-500.0,0.00013943,2]
[331603065,1720578702382,-1989.03,0.00013943,2]
[331603066,1720578702392,-971.82,0.00013943,2]
[331603067,1720578702402,-658.51,0.00013943,2]
[331603068,1720578702411,-896.87,0.00013943,2]
[331603069,1720578702429,-4166.66,0.00013943,2]
[331603070,1720578702439,-500.0,0.00013943,2]
[331603071,1720578702449,-620.44,0.00013943,2]
[331603072,1720578702459,-602.63,0.00013943,2]
[331603073,1720578702468,-1203.55,0.00013943,2]
[331603074,1720578702478,-500.0,0.00013943,2]
[331603075,1720578702488,-1134.03,0.00013943,2]
[331603076,1720578702497,-521.53,0.00013943,2]
[331603077,1720578702507,-542.03,0.00013943,2]
[331603078,1720578702516,-500.0,0.00013943,2]
[331603079,1720578702526,-621.43,0.00013943,2]
[331603080,1720578702536,-1368.5,0.00013943,2]
[331603081,1720578702545,-500.0,0.00013943,2]
[331603082,1720578702555,-883.15,0.00013943,2]
[331603083,1720578702564,-900.28,0.00013943,2]
[331603084,1720578702574,-596.89,0.00013943,2]
[331603085,1720578702584,-940.85,0.00013943,2]
[331603086,1720578702593,-816.55,0.00013943,2]
[331603087,1720578702603,-500.0,0.00013943,2]
[331603088,1720578702612,-545.1368853,0.00013943,2]
[331603089,1720578702622,-536.52667738,0.00013943,2]
[331603090,1720578702632,-1329.26,0.00013943,2]
[331603091,1720578702642,-500.0,0.00013943,2]
[331603092,1720578702651,-500.0,0.00013943,2]
[331603093,1720578702661,-500.0,0.00013943,2]
[331603094,1720578702670,-1561.93,0.00013943,2]
[331603095,1720578702679,-500.0,0.00013943,2]
[331603096,1720578702689,-2019.26,0.00013943,2]
[331603097,1720578702698,-1658.03,0.00013943,2]
[331603098,1720578702707,-560.71,0.00013943,2]
[331603099,1720578702717,-638.51,0.00013943,2]
[331603100,1720578702727,-500.0,0.00013943,2]
[331603101,1720578702736,-500.0,0.00013943,2]
[331603102,1720578702746,-512.68,0.00013943,2]
[331603103,1720578702756,-2886.16,0.00013943,2]
[331603104,1720578702766,-789.36,0.00013943,2]
[331603105,1720578702776,-500.0,0.00013943,2]
[331603106,1720578702786,-500.0,0.00013943,2]
[331603107,1720578702795,-500.0,0.00013943,2]
[331603108,1720578702806,-2338.96,0.00013943,2]
[331603109,1720578702815,-500.0,0.00013943,2]
[331603110,1720578702825,-500.0,0.00013943,2]
[331603111,1720578702835,-500.0,0.00013943,2]
[331603112,1720578702844,-837.97,0.00013943,2]
[331603113,1720578702854,-500.0,0.00013943,2]
[331603114,1720578702865,-551.0,0.00013943,2]
[331603115,1720578702875,-583.25,0.00013943,2]
[331603116,1720578702884,-1412.79,0.00013943,2]
[331603117,1720578702894,-1306.82,0.00013943,2]
[331603118,1720578702903,-500.0,0.00013943,2]
[331603119,1720578702913,-500.0,0.00013943,2]
[331603120,1720578702922,-2505.4,0.00013943,2]
[331603121,1720578702931,-500.0,0.00013943,2]
[331603122,1720578702942,-500.0,0.00013943,2]
[331603123,1720578702952,-853.07,0.00013943,2]
[331603124,1720578702961,-500.0,0.00013943,2]
[331603125,1720578702971,-2776.66,0.00013943,2]
[331603126,1720578702980,-5214.09,0.00013943,2]
[331603127,1720578702989,-1421.19,0.00013943,2]
[331603128,1720578702998,-1958.4,0.00013943,2]
[331603129,1720578703008,-500.0,0.00013943,2]
[331603130,1720578703017,-500.0,0.00013944,2]
[331603131,1720578703027,-500.0,0.00013944,2]
[331603132,1720578703036,-500.0,0.00013944,2]
[331603133,1720578703045,-500.0,0.00013944,2]
[331603134,1720578703054,-500.0,0.00013944,2]
[331603135,1720578703063,-500.0,0.00013944,2]
[331603136,1720578703072,-817.04,0.00013944,2]
[331603137,1720578703082,-817.04,0.00013944,2]
[331603138,1720578703091,-817.04,0.00013944,2]
[331603139,1720578703100,-500.0,0.00013944,2]
[331603140,1720578703109,-500.0,0.00013944,2]
[331603141,1720578703120,-500.0,0.00013944,2]
[331603142,1720578703130,-971.82,0.00013944,2]
[331603143,1720578703139,-971.82,0.00013944,2]
[331603144,1720578703148,-971.82,0.00013944,2]
[331603145,1720578703158,-4166.66,0.00013944,2]
[331603146,1720578703565,-4166.66,0.00013944,2]
[331603147,1720578703580,-4166.66,0.00013944,2]
[331603148,1720578703590,-500.0,0.00013944,2]
[331603149,1720578703599,-500.0,0.00013944,2]
[331603150,1720578703608,-500.0,0.00013944,2]
[331603151,1720578703618,-500.0,0.00013944,2]
[331603152,1720578703627,-500.0,0.00013944,2]
[331603153,1720578703636,-500.0,0.00013944,2]
[331603154,1720578703644,-500.0,0.00013944,2]
[331603155,1720578703653,-500.0,0.00013944,2]
[331603156,1720578703662,-500.0,0.00013944,2]
[331603157,1720578703672,-301.09209386,0.00013944,2]
[331603158,1720578703681,-1038.91,0.00013944,2]
[331603159,1720578703691,-1038.91,0.00013944,2]
[331603160,1720578703700,-5214.09,0.00013944,2]
[331603161,1720578703709,-5214.09,0.00013944,2]
[331603162,1720578703719,-5214.09,0.00013944,2]
[331603163,1720578703728,-1317.14,0.00013944,2]
[331603164,1720578703737,-1317.14,0.00013944,2]
[331603165,1720578703747,-1148.94,0.00013944,2]
[331603166,1720578703756,-1148.94,0.00013944,2]
[331603167,1720578703765,-1390.96,0.00013944,2]
[331603168,1720578703775,-1390.96,0.00013944,2]
[331603169,1720578703784,-500.0,0.00013944,2]
[331603170,1720578703794,-500.0,0.00013944,2]
[331603171,1720578703803,-1421.19,0.00013944,2]
[331603172,1720578703813,-4612.26,0.00013944,2]
[331603173,1720578703822,-4612.26,0.00013944,2]
[331603174,1720578703832,-1958.4,0.00013944,2]
[331603175,1720578703842,-1958.4,0.00013944,2]
[331603176,1720578703852,-1958.4,0.00013944,2]
[331603177,1720578703862,-885.52,0.00013944,2]
[331603178,1720578703872,-885.52,0.00013944,2]
[331603179,1720578703882,-500.0,0.00013944,2]
[331603180,1720578703891,-500.0,0.00013944,2]
[331603181,1720578703900,-500.0,0.00013944,2]
[331603182,1720578703910,-500.0,0.00013945,2]
[331603183,1720578703919,-971.82,0.00013945,2]
[331603184,1720578703929,-500.0,0.00013945,2]
[331603185,1720578703939,-21220.0,0.00013945,2]
[331603186,1720578703949,-73109.0,0.00013945,2]
[331603187,1720578703959,-2905.0,0.00013945,2]
[331603188,1720578703968,-26051.0,0.00013945,2]
[331603189,1720578703978,-213.95307399,0.00013946,2]
[331603190,1720578703988,-500.0,0.00013946,2]
[331603191,1720578704002,-500.0,0.00013946,2]
[331603192,1720578704013,-971.82,0.00013946,2]
[331603193,1720578704024,-4166.66,0.00013946,2]
[331603194,1720578704035,-500.0,0.00013946,2]
[331603195,1720578704045,-500.0,0.00013946,2]
[331603196,1720578704056,-520.5778938,0.00013953,2]
[331603197,1720578704066,-176.21363157,0.00013953,2]
[331603198,1720578704077,-227.87814094,0.00013953,2]
[331603199,1720578704089,-150.0,0.00013954,2]
[331603200,1720578704099,-520.5778938,0.00013965,2]
[331603201,1720578704112,-176.21363157,0.00013965,2]
[331603202,1720578704122,-227.87814094,0.00013965,2]
[331603203,1720578704135,-2003.501,0.00013965,2]
[331603204,1720578704146,-551.675,0.00013965,2]
[331603205,1720578704157,-3272.751,0.00013965,2]
[331603206,1720578704168,-284.875,0.00013965,2]
[331603207,1720578704179,-1513.515,0.00013965,2]
[331603208,1720578704189,-198.474,0.00013965,2]
[331603209,1720578704200,-21353.094,0.00013965,2]
[331603210,1720578704211,-1206.262,0.00013965,2]
[331603211,1720578704221,-5218.182,0.00013965,2]
[331603212,1720578704231,-335.374,0.00013965,2]
[331603213,1720578704241,-1053.748,0.00013965,2]
[331603214,1720578704251,-162.365,0.00013965,2]
[331603215,1720578704262,-300.55055017,0.0001397,2]
[331603216,1720578704271,-4197.77,0.00013972,2]
[331603217,1720578704282,-2000.0,0.00013973,3]
[331603218,1720578704293,-520.5778938,0.00013976,2]
[331603219,1720578704304,-227.87814094,0.00013976,2]
[331603220,1720578704314,-150.0,0.00013984,2]
[331603221,1720578704324,-1421.19,0.00013984,2]
[331603222,1720578704334,-520.5778938,0.00013987,2]
[331603223,1720578704344,-227.87814094,0.00013987,2]
[331603224,1720578704354,-2035.512349,0.0001399,2]
[331603225,1720578704364,-1659.759431,0.0001399,2]
[331603226,1720578704375,-1060.779632,0.0001399,2]
[331603227,1720578704386,-328.10255,0.0001399,2]
[331603228,1720578704396,-213.461271,0.0001399,2]
[331603229,1720578704406,-154.547037,0.0001399,2]
[331603230,1720578704416,-177.897854,0.0001399,2]
[331603231,1720578704427,-567.961313,0.0001399,2]
[331603232,1720578704437,-804.928007,0.0001399,2]
[331603233,1720578704447,-305.458381,0.0001399,2]
[331603234,1720578704459,-3179.561637,0.0001399,2]
[331603235,1720578704469,-328.10255,0.0001399,2]
[331603236,1720578704479,-804.928008,0.0001399,2]
[331603237,1720578704489,-178.119114,0.0001399,2]
[331603238,1720578704498,-178.648124,0.0001399,2]
[331603239,1720578704509,-172.992039,0.0001399,2]
[331603240,1720578704520,-191.106878,0.0001399,2]
[331603241,1720578704532,-212.212954,0.0001399,2]
[331603242,1720578704543,-190.870518,0.0001399,2]
[331603243,1720578704555,-211.738452,0.0001399,2]
[331603244,1720578704566,-184.496235,0.0001399,2]
[331603245,1720578704576,-180.656687,0.0001399,2]
[331603246,1720578704587,-500.0,0.00013991,2]
[331603247,1720578704597,-4166.66,0.00013991,2]
[331603248,1720578704607,-1148.94,0.00013991,2]
[331603249,1720578704617,-757.8,0.00013991,2]
[331603250,1720578704627,-500.0,0.00013991,2]
[331603251,1720578704637,-500.0,0.00013991,2]
[331603252,1720578704646,-636.3,0.00013991,2]
[331603253,1720578704656,-500.0,0.00013991,2]
[331603254,1720578704665,-500.0,0.00013991,2]
[331603255,1720578704675,-2000.0,0.00013991,2]
[331603256,1720578704684,-2005.69,0.00013991,2]
[331603257,1720578704694,-500.0,0.00013991,2]
[331603258,1720578704703,-500.0,0.00013991,2]
[331603259,1720578704714,-204.41756668,0.00013991,2]
[331603260,1720578704723,-500.0,0.00013991,2]
[331603261,1720578704733,-1486.82,0.00013991,2]
[331603262,1720578704743,-500.0,0.00013991,2]
[331603263,1720578704753,-15398.87493845,0.00013991,2]
[331603264,1720578704763,-500.0,0.00013991,2]
[331603265,1720578704773,-500.0,0.00013991,2]
[331603266,1720578704782,-500.0,0.00013991,2]
[331603267,1720578704792,-500.0,0.00013991,2]
[331603268,1720578704802,-500.0,0.00013991,2]
[331603269,1720578704812,-500.0,0.00013991,2]
[331603270,1720578704821,-500.0,0.00013991,2]
[331603271,1720578704831,-500.0,0.00013991,2]
[331603272,1720578704842,-1914.68,0.00013991,2]
[331603273,1720578704852,-500.0,0.00013991,2]
[331603274,1720578704863,-500.0,0.00013991,2]
[331603275,1720578704875,-500.0,0.00013991,2]
[331603276,1720578704885,-500.0,0.00013991,2]
[331603277,1720578704894,-500.0,0.00013991,2]
[331603278,1720578704904,-500.0,0.00013991,2]
[331603279,1720578704915,-500.0,0.00013991,2]
[331603280,1720578704925,-500.0,0.00013991,2]
[331603281,1720578704935,-500.0,0.00013991,2]
[331603282,1720578704945,-1000.0,0.00013991,2]
[331603283,1720578704955,-577.81543803,0.00013991,2]
[331603284,1720578704964,-3914.89,0.00013991,2]
[331603285,1720578704974,-500.0,0.00013991,2]
[331603286,1720578704984,-500.0,0.00013991,2]
[331603287,1720578704994,-500.0,0.00013991,2]
[331603288,1720578705004,-515.31606137,0.00013991,2]
[331603289,1720578705013,-500.0,0.00013991,2]
[331603290,1720578705023,-500.0,0.00013992,2]
[331603291,1720578705032,-1038.91,0.00013992,2]
[331603292,1720578705042,-1038.91,0.00013992,2]
[331603293,1720578705052,-1038.91,0.00013992,2]
[331603294,1720578705061,-1038.91,0.00013992,2]
[331603295,1720578705070,-1038.91,0.00013992,2]
[331603296,1720578705079,-1038.91,0.00013992,2]
[331603297,1720578705090,-1038.95303018,0.00013992,2]
[331603298,1720578705099,-1317.14,0.00013992,2]
[331603299,1720578705108,-1317.14,0.00013992,2]
[331603300,1720578705117,-1317.14,0.00013992,2]
[331603301,1720578705128,-1317.14,0.00013992,2]
[331603302,1720578705137,-1317.14,0.00013992,2]
[331603303,1720578705147,-1317.14,0.00013992,2]
[331603304,1720578705156,-1317.32775283,0.00013992,2]
[331603305,1720578705166,-1148.94,0.00013992,2]
[331603306,1720578705176,-1390.96,0.00013992,2]
[331603307,1720578705185,-1390.96,0.00013992,2]
[331603308,1720578705194,-1390.96,0.00013992,2]
[331603309,1720578705203,-1390.96,0.00013992,2]
[331603310,1720578705212,-1390.96,0.00013992,2]
[331603311,1720578705222,-1390.96,0.00013992,2]
[331603312,1720578705231,-1391.1877604,0.00013992,2]
[331603313,1720578705240,-1455.92,0.00013992,2]
[331603314,1720578705250,-500.0,0.00013992,2]
[331603315,1720578705259,-1960.51,0.00013992,2]
[331603316,1720578705269,-2618.57,0.00013992,2]
[331603317,1720578705279,-1029.8,0.00013992,2]
[331603318,1720578705288,-500.0,0.00013992,2]
[331603319,1720578705298,-235.30488256,0.00013992,2]
[331603320,1720578705307,-1905.84,0.00013992,2]
[331603321,1720578705316,-2751.51,0.00013992,2]
[331603322,1720578705325,-5036.29,0.00013992,2]
[331603323,1720578705336,-670.86,0.00013992,2]
[331603324,1720578705346,-1711.01,0.00013992,2]
[331603325,1720578705356,-500.0,0.00013992,2]
[331603326,1720578705365,-500.0,0.00013992,2]
[331603327,1720578705374,-500.0,0.00013992,2]
[331603328,1720578705384,-3859.09,0.00013992,2]
[331603329,1720578705395,-1762.08,0.00013992,2]
[331603330,1720578705407,-1456.74,0.00013992,2]
[331603331,1720578705416,-3792.63,0.00013992,2]
[331603332,1720578705426,-1563.93,0.00013992,2]
[331603333,1720578705437,-2172.58,0.00013992,2]
[331603334,1720578705447,-1021.12,0.00013992,2]
[331603335,1720578705457,-1287.44,0.00013992,2]
[331603336,1720578705466,-500.0,0.00013992,2]
[331603337,1720578705476,-2002.94,0.00013992,2]
[331603338,1720578705485,-500.0,0.00013992,2]
[331603339,1720578705495,-2847.29,0.00013992,2]
[331603340,1720578705504,-500.0,0.00013992,2]
[331603341,1720578705514,-1287.82,0.00013992,2]
[331603342,1720578705523,-500.0,0.00013992,2]
[331603343,1720578705532,-500.0,0.00013992,2]
[331603344,1720578705542,-1532.31,0.00013992,2]
[331603345,1720578705551,-18831.15,0.00013992,2]
[331603346,1720578705561,-573.49,0.00013992,2]
[331603347,1720578705570,-507.26,0.00013992,2]
[331603348,1720578705579,-4113.11,0.00013992,2]
[331603349,1720578705590,-1312.78,0.00013992,2]
[331603350,1720578705599,-1834.03,0.00013992,2]
[331603351,1720578705610,-2122.3,0.00013992,2]
[331603352,1720578705621,-5120.22,0.00013992,2]
[331603353,1720578705631,-1279.8,0.00013992,2]
[331603354,1720578705642,-839.66,0.00013992,2]
[331603355,1720578705651,-1175.98,0.00013992,2]
[331603356,1720578705663,-4117.2,0.00013992,2]
[331603357,1720578705673,-1655.36,0.00013992,2]
[331603358,1720578705683,-1896.2,0.00013992,2]
[331603359,1720578705693,-1132.24,0.00013992,2]
[331603360,1720578705704,-606.3,0.00013992,2]
[331603361,1720578705714,-1421.19,0.00013992,2]
[331603362,1720578705725,-1421.19,0.00013992,2]
[331603363,1720578705735,-1421.19,0.00013992,2]
[331603364,1720578705745,-1421.19,0.00013992,2]
[331603365,1720578705755,-1421.19,0.00013992,2]
[331603366,1720578705765,-1421.19967357,0.00013992,2]
[331603367,1720578705775,-654.8,0.00013992,2]
[331603368,1720578705784,-1131.81,0.00013992,2]
[331603369,1720578705794,-1334.15,0.00013992,2]
[331603370,1720578705803,-500.0,0.00013992,2]
[331603371,1720578705812,-2422.26,0.00013992,2]
[331603372,1720578705822,-1116.51,0.00013992,2]
[331603373,1720578705831,-1951.99,0.00013992,2]
[331603374,1720578705840,-2661.03,0.00013992,2]
[331603375,1720578705850,-1178.8,0.00013992,2]
[331603376,1720578705862,-1253.31,0.00013992,2]
[331603377,1720578705873,-1200.25,0.00013992,2]
[331603378,1720578705883,-4612.26,0.00013992,2]
[331603379,1720578705892,-4612.26,0.00013992,2]
[331603380,1720578705902,-4612.26,0.00013992,2]
[331603381,1720578705912,-4612.26,0.00013992,2]
[331603382,1720578705921,-4612.26,0.00013992,2]
[331603383,1720578705931,-4612.26733086,0.00013992,2]
[331603384,1720578705940,-1260.1,0.00013992,2]
[331603385,1720578706100,-1418.06,0.00013992,2]
[331603386,1720578706110,-3430.04,0.00013992,2]
[331603387,1720578706119,-500.0,0.00013992,2]
[331603388,1720578706129,-500.0,0.00013992,2]
[331603389,1720578706139,-549.11,0.00013992,2]
[331603390,1720578706149,-500.0,0.00013992,2]
[331603391,1720578706158,-3396.59,0.00013992,2]
[331603392,1720578706167,-500.0,0.00013992,2]
[331603393,1720578706177,-500.0,0.00013992,2]
[331603394,1720578706186,-500.0,0.00013992,2]
[331603395,1720578706196,-1770.78,0.00013992,2]
[331603396,1720578706205,-2530.21,0.00013992,2]
[331603397,1720578706215,-1287.82,0.00013992,2]
[331603398,1720578706224,-1059.63,0.00013992,2]
[331603399,1720578706234,-500.0,0.00013992,2]
[331603400,1720578706244,-1544.82,0.00013992,2]
[331603401,1720578706253,-885.52,0.00013992,2]
[331603402,1720578706262,-885.52,0.00013992,2]
[331603403,1720578706272,-885.52,0.00013992,2]
[331603404,1720578706281,-1342.13,0.00013992,2]
[331603405,1720578706291,-885.52,0.00013992,2]
[331603406,1720578706300,-885.52,0.00013992,2]
[331603407,1720578706310,-756.53,0.00013992,2]
[331603408,1720578706319,-885.52,0.00013992,2]
[331603409,1720578706329,-885.53023718,0.00013992,2]
[331603410,1720578706339,-944.74,0.00013992,2]
[331603411,1720578706348,-500.0,0.00013992,2]
[331603412,1720578706358,-1406.5,0.00013992,2]
[331603413,1720578706368,-1077.77,0.00013992,2]
[331603414,1720578706378,-500.0,0.00013992,2]
[331603415,1720578706387,-3328.51,0.00013992,2]
[331603416,1720578706397,-500.0,0.00013992,2]
[331603417,1720578706406,-3783.08,0.00013992,2]
[331603418,1720578706416,-869.72,0.00013992,2]
[331603419,1720578706425,-500.0,0.00013992,2]
[331603420,1720578706434,-500.0,0.00013992,2]
[331603421,1720578706444,-3362.6,0.00013992,2]
[331603422,1720578706453,-656.32,0.00013992,2]
[331603423,1720578706463,-504.68,0.00013992,2]
[331603424,1720578706472,-3222.36,0.00013992,2]
[331603425,1720578706482,-1629.29,0.00013992,2]
[331603426,1720578706491,-500.0,0.00013992,2]
[331603427,1720578706500,-500.0,0.00013992,2]
[331603428,1720578706509,-3487.89,0.00013992,2]
[331603429,1720578706519,-1828.3,0.00013992,2]
[331603430,1720578706528,-500.0,0.00013992,2]
[331603431,1720578706538,-500.0,0.00013992,2]
[331603432,1720578706547,-500.0,0.00013992,2]
[331603433,1720578706556,-5257.38,0.00013992,2]
[331603434,1720578706566,-500.0,0.00013992,2]
[331603435,1720578706576,-1267.89,0.00013992,2]
[331603436,1720578706586,-500.0,0.00013992,2]
[331603437,1720578706595,-500.0,0.00013992,2]
[331603438,1720578706605,-500.0,0.00013992,2]
[331603439,1720578706614,-634.68,0.00013992,2]
[331603440,1720578706623,-2273.65,0.00013992,2]
[331603441,1720578706633,-500.0,0.00013992,2]
[331603442,1720578706643,-500.0,0.00013992,2]
[331603443,1720578706652,-500.0,0.00013992,2]
[331603444,1720578706661,-500.0,0.00013992,2]
[331603445,1720578706671,-896.69,0.00013992,2]
[331603446,1720578706680,-500.0,0.00013992,2]
[331603447,1720578706689,-966.63,0.00013992,2]
[331603448,1720578706698,-1443.09,0.00013992,2]
[331603449,1720578706707,-500.0,0.00013992,2]
[331603450,1720578706716,-500.0,0.00013992,2]
[331603451,1720578706726,-639.2,0.00013992,2]
[331603452,1720578706735,-500.0,0.00013992,2]
[331603453,1720578706744,-500.0,0.00013992,2]
[331603454,1720578706754,-500.0,0.00013992,2]
[331603455,1720578706763,-500.0,0.00013992,2]
[331603456,1720578706772,-1220.14,0.00013992,2]
[331603457,1720578706782,-500.0,0.00013992,2]
[331603458,1720578706791,-541.01,0.00013992,2]
[331603459,1720578706801,-500.0,0.00013992,2]
[331603460,1720578706810,-831.42,0.00013992,2]
[331603461,1720578706820,-1127.62,0.00013992,2]
[331603462,1720578706829,-1218.93,0.00013992,2]
[331603463,1720578706839,-500.0,0.00013992,2]
[331603464,1720578706849,-1012.4,0.00013992,2]
[331603465,1720578706859,-1298.8,0.00013992,2]
[331603466,1720578706868,-500.0,0.00013992,2]
[331603467,1720578706878,-500.0,0.00013992,2]
[331603468,1720578706887,-970.3,0.00013992,2]
[331603469,1720578706898,-2186.57,0.00013992,2]
[331603470,1720578706907,-390.06434627,0.00013992,2]
[331603471,1720578706917,-524.84,0.00013992,2]
[331603472,1720578706927,-1512.83,0.00013992,2]
[331603473,1720578706936,-1160.2,0.00013992,2]
[331603474,1720578706946,-500.0,0.00013992,2]
[331603475,1720578706956,-660.83,0.00013992,2]
[331603476,1720578706965,-1757.71,0.00013992,2]
[331603477,1720578706975,-500.0,0.00013992,2]
[331603478,1720578706985,-1106.87,0.00013992,2]
[331603479,1720578706995,-500.0,0.00013992,2]
[331603480,1720578707005,-500.0,0.00013992,2]
[331603481,1720578707014,-500.0,0.00013992,2]
[331603482,1720578707024,-500.0,0.00013992,2]
[331603483,1720578707034,-701.66,0.00013992,2]
[331603484,1720578707043,-1729.59,0.00013992,2]
[331603485,1720578707053,-2068.54,0.00013992,2]
[331603486,1720578707062,-1374.41,0.00013992,2]
[331603487,1720578707071,-1628.46,0.00013992,2]
[331603488,1720578707081,-500.0,0.00013992,2]
[331603489,1720578707091,-500.0,0.00013992,2]
[331603490,1720578707100,-677.11,0.00013992,2]
[331603491,1720578707110,-1656.94,0.00013992,2]
[331603492,1720578707119,-1266.15,0.00013992,2]
[331603493,1720578707130,-500.0,0.00013992,2]
[331603494,1720578707140,-1326.83,0.00013992,2]
[331603495,1720578707151,-714.26,0.00013992,2]
[331603496,1720578707160,-570.72,0.00013992,2]
[331603497,1720578707169,-500.0,0.00013992,2]
[331603498,1720578707179,-2502.21,0.00013992,2]
[331603499,1720578707188,-3059.3,0.00013992,3]
[331603500,1720578707198,-500.0,0.00013992,2]
[331603501,1720578707207,-905.75,0.00013992,2]
[331603502,1720578707216,-2000.0,0.00013992,2]
[331603503,1720578707225,-1000.0,0.00013992,2]
[331603504,1720578707235,-500.0,0.00013992,2]
[331603505,1720578707244,-500.0,0.00013993,2]
[331603506,1720578707253,-500.0,0.00013993,2]
[331603507,1720578707262,-863.45,0.00013993,2]
[331603508,1720578707271,-692.27,0.00013993,2]
[331603509,1720578707280,-1710.86,0.00013993,2]
[331603510,1720578707289,-500.0,0.00013993,2]
[331603511,1720578707298,-500.0,0.00013993,2]
[331603512,1720578707308,-2134.95,0.00013993,2]
[331603513,1720578707317,-500.0,0.00013993,2]
[331603514,1720578707326,-500.0,0.00013993,2]
[331603515,1720578707336,-500.0,0.00013993,2]
[331603516,1720578707346,-500.0,0.00013993,2]
[331603517,1720578707355,-500.0,0.00013993,2]
[331603518,1720578707367,-500.0,0.00013993,2]
[331603519,1720578707376,-1192.7,0.00013993,2]
[331603520,1720578707385,-500.0,0.00013993,2]
[331603521,1720578707394,-1517.28,0.00013993,2]
[331603522,1720578707403,-500.0,0.00013993,2]
[331603523,1720578707412,-1017.28,0.00013993,2]
[331603524,1720578707422,-500.0,0.00013993,2]
[331603525,1720578707431,-1181.86,0.00013993,2]
[331603526,1720578707440,-500.0,0.00013993,2]
[331603527,1720578707450,-654.08,0.00013993,2]
[331603528,1720578707459,-500.0,0.00013993,2]
[331603529,1720578707468,-987.54,0.00013993,2]